bitfinex-derivatives/quotes_SOLF0:USTF0_20251222
["timestamp","ask_amount","ask_price","bid_price","bid_amount"]
[1766420275568,15.29980004,128.07,128.02,7.09109651]
[1766420277665,15.29980004,128.07,128.02,0.05829651]
[1766420277966,15.25,128.03,127.95,7.14168842]
[1766420278161,15.25,128.03,127.95,22.20168842]
[1766420278571,15.25,128.03,127.98,7.035]
[1766420278870,0.05734037,128.02,127.99,0.05878112]
[1766420280359,0.05734037,128.02,127.99,7.09338112]
[1766420280566,18.90789635,128.06,127.99,15.11878112]
[1766420281573,0.05406487,128.04,128.0,7.0339]
[1766420281778,0.05406487,128.04,128.01,0.05222096]
[1766420282168,0.05406487,128.04,128.02,7.0328]
[1766420282772,0.00406487,128.04,128.02,7.0328]
[1766420282975,0.00406487,128.04,128.03,7.0324]
[1766420284474,0.00406487,128.04,128.01,7.08522096]
[1766420286167,0.00406487,128.04,128.01,0.05222096]
[1766420287577,0.00406487,128.04,128.01,7.08562096]
[1766420288779,0.00406487,128.04,128.02,7.0328]
[1766420297288,0.00406487,128.04,128.03,7.0324]
[1766420298394,0.00406487,128.04,128.03,21.6624]
[1766420298893,15.46,128.14,128.06,14.63]
[1766420299089,15.46,128.14,128.07,14.63]
[1766420299090,17.80368244,128.14,128.07,14.63]
[1766420299288,2.34368244,128.14,128.08,123.98]
[1766420299593,17.80368244,128.12,128.06,7.17409636]
[1766420299798,17.80368244,128.12,128.05,14.63]
[1766420300097,0.05190638,128.1,128.07,0.05491465]
[1766420300392,2.39558882,128.1,128.07,0.05491465]
[1766420301488,2.39558882,128.1,128.07,7.08501465]
[1766420301694,2.39558882,128.1,128.03,21.80409636]
[1766420301695,17.85558882,128.1,128.03,21.80409636]
[1766420301998,2.34368244,128.08,128.02,124.025]
[1766420302399,8.244e-05,128.08,128.05,7.0311]
[1766420302802,0.0575418,128.08,128.05,7.08974836]
[1766420306200,15.5175418,128.08,128.05,0.05864836]
[1766420306501,15.5175418,128.08,128.02,14.63]
[1766420307505,15.5175418,128.08,128.04,0.05583466]
[1766420307703,0.0575418,128.08,128.04,0.05583466]
[1766420309006,0.0575418,128.08,128.04,7.08743466]
[1766420313307,14.7675418,128.08,128.04,0.05583466]
[1766420313507,2.34368244,128.04,127.98,7.17409636]
[1766420313702,2.34368244,128.04,127.97,15.25]
[1766420314400,2.34368244,128.04,127.98,7.0349]
[1766420314602,0.05361888,128.02,127.99,0.05315382]
[1766420316799,17.58730132,128.02,127.99,0.00315382]
[1766420317002,17.53368244,128.0,127.94,15.08]
[1766420317208,2.34368244,128.01,127.94,15.08]
[1766420317503,2.34368244,128.01,127.96,7.036]
[1766420318001,0.05291817,128.0,127.97,0.05288717]
[1766420321002,2.34368244,128.03,127.98,22.1149]
[1766420321207,2.34368244,128.05,127.98,22.1149]
[1766420321503,17.53368244,128.05,127.98,15.08]
[1766420321914,0.05574885,128.03,128.0,0.05247639]
[1766420322513,17.58943129,128.03,128.0,0.00247639]
[1766420322713,17.58943129,128.03,127.95,15.08]
[1766420323014,17.53368244,128.01,127.93,15.08]
[1766420323598,0.05053697,127.98,127.96,0.05664153]
[1766420326317,0.05053697,127.98,127.93,15.08]
[1766420327517,0.05053697,127.98,127.94,0.05536477]
[1766420328110,7.08593697,127.98,127.94,0.05536477]
[1766420328321,2.34368244,127.97,127.94,0.05536477]
[1766420328524,15.19,127.97,127.89,15.08]
[1766420328815,17.53368244,127.96,127.89,15.08]
[1766420329412,0.05819496,127.94,127.91,0.05888313]
[1766420329612,2.34368244,127.96,127.91,0.05888313]
[1766420329819,2.34368244,127.96,127.91,15.13888313]
[1766420330221,9.37888244,127.98,127.91,15.13888313]
[1766420330414,9.37888244,127.98,127.91,15.08]
[1766420330610,24.56888244,127.98,127.91,15.08]
[1766420330813,0.05453576,127.96,127.93,0.05825493]
[1766420335910,0.00453576,127.96,127.93,15.13825493]
[1766420337424,0.00453576,127.96,127.93,0.05825493]
[1766420341021,2.34368244,127.95,127.88,15.08]
[1766420342026,0.05312522,127.93,127.9,0.0574736]
[1766420343822,0.00312522,127.93,127.9,15.1374736]
[1766420344522,0.00312522,127.93,127.9,22.1768736]
[1766420345025,2.34368244,127.97,127.92,15.08]
[1766420345419,2.34368244,127.99,127.92,15.08]
[1766420346122,0.0581121,127.97,127.94,0.05586877]
[1766420348429,14.8281121,127.97,127.9,7.0392]
[1766420348620,14.77,127.97,127.9,7.0392]
[1766420349125,14.77,127.97,127.9,21.3492]
[1766420349533,0.05010944,127.95,127.92,0.0599696]
[1766420349919,0.00010944,127.95,127.92,14.3699696]
[1766420350534,0.00010944,127.95,127.92,0.0599696]
[1766420351530,14.77010944,127.95,127.89,21.35]
[1766420352733,14.77010944,127.95,127.91,0.05699749]
[1766420358339,21.80700944,127.95,127.91,0.05699749]
[1766420358734,14.77,127.94,127.87,14.31]
[1766420358936,14.77,127.94,127.87,21.3511]
[1766420359135,21.8073,127.94,127.87,21.3511]
[1766420359732,0.05483981,127.92,127.89,0.05918465]
[1766420364047,0.00483981,127.92,127.89,14.36918465]
[1766420364443,0.00483981,127.92,127.89,0.05918465]
[1766420366746,0.00483981,127.92,127.89,14.36918465]
[1766420366947,14.77,127.99,127.89,15.92918465]
[1766420367139,14.77,127.99,127.89,14.31]
[1766420367335,21.8049,127.99,127.92,14.31]
[1766420367940,0.05188635,127.97,127.94,0.05327979]
[1766420369344,0.05188635,127.97,127.94,14.36327979]
[1766420369345,0.00188635,127.97,127.94,14.36327979]
[1766420372647,0.00188635,127.97,127.94,0.05327979]
[1766420372845,14.77,128.03,127.94,14.36327979]
[1766420373045,7.0319,128.04,127.97,14.31]
[1766420373251,21.8019,128.04,127.97,14.31]
[1766420373446,14.77,128.04,127.97,21.3456]
[1766420373651,14.77,128.04,127.98,14.31]
[1766420373852,0.00275797,128.02,128.0,0.05354604]
[1766420379845,2.13812,128.05,128.0,14.30354604]
[1766420380956,0.05172218,128.04,128.0,14.30354604]
[1766420382256,0.05172218,128.04,128.0,0.05354604]
[1766420384548,14.96172218,128.04,128.0,0.05354604]
[1766420386858,0.05172218,128.04,128.0,0.05354604]
[1766420387860,0.05172218,128.04,128.0,14.30354604]
[1766420388160,0.05172218,128.04,128.0,0.05354604]
[1766420388956,14.96172218,128.04,128.0,0.05354604]
[1766420389260,18.62870383,128.04,128.0,0.05354604]
[1766420389560,18.62870383,128.04,127.96,14.25]
[1766420389744,18.57698165,128.02,127.92,14.25]
[1766420390149,3.66698165,128.0,127.92,14.25]
[1766420390361,25.61108165,128.0,127.92,14.25]
[1766420390562,0.05345249,127.97,127.95,0.05222913]
[1766420395961,0.00345249,127.97,127.95,0.05222913]
[1766420396265,25.61038165,128.02,127.95,14.30222913]
[1766420397055,0.05595345,128.0,127.95,14.30222913]
[1766420398369,18.57698165,128.04,127.97,14.25]
[1766420399565,0.05971873,128.02,127.99,0.05428332]
[1766420402278,2.13812,128.05,127.99,14.30428332]
[1766420403372,0.05746046,128.03,127.99,14.30428332]
[1766420403559,2.13812,128.05,127.99,14.30428332]
[1766420403560,2e-05,128.05,127.99,14.30428332]
[1766420403762,2e-05,128.05,128.02,14.25]
[1766420403975,2e-05,128.05,128.03,21.2821]
[1766420404179,132.53321344,128.1,128.03,21.2821]
[1766420404369,109.06321344,128.1,128.03,14.25]
[1766420404567,0.05967504,128.08,128.05,0.05659492]
[1766420404875,14.96967504,128.08,128.02,7.0327]
[1766420405077,14.91,128.08,128.02,7.0327]
[1766420405971,0.05651951,128.06,128.04,0.04944069]
[1766420409276,0.05651951,128.06,128.01,14.47]
[1766420409582,2.39982908,128.06,128.01,14.47]
[1766420410376,2.39982908,128.06,128.02,0.05834659]
[1766420410580,2.39982908,128.06,128.02,14.52834659]
[1766420410581,0.05651951,128.06,128.02,14.52834659]
[1766420411573,2.34330957,128.08,128.02,14.52834659]
[1766420412777,0.04948734,128.06,128.02,14.52834659]
[1766420417480,2.34330957,128.08,128.02,14.52834659]
[1766420417874,96.49652301,128.1,128.02,14.52834659]
[1766420418182,94.52330957,128.1,128.02,14.47]
[1766420418383,0.05809854,128.07,128.05,0.05054671]
[1766420419568,2.34330957,128.12,128.05,14.52054671]
[1766420420680,0.05766622,128.1,128.05,14.52054671]
[1766420421277,17.65330957,128.13,128.06,7.0306]
[1766420421572,2.34330957,128.13,128.07,14.47]
[1766420422277,0.05397669,128.11,128.09,0.05572716]
[1766420423981,0.00397669,128.11,128.09,0.05572716]
[1766420424176,10.0,128.18,128.09,14.52572716]
[1766420424376,2.34330957,128.17,128.09,14.47]
[1766420424572,10.0,128.18,128.12,14.47]
[1766420425281,10.0,128.18,128.14,0.0492503]
[1766420425585,2.34330957,128.17,128.14,0.0492503]
[1766420425878,2.34330957,128.15,128.09,14.47]
[1766420426789,2.34330957,128.15,128.11,0.05751824]
[1766420427877,2.34330957,128.17,128.11,14.52751824]
[1766420430684,2.34330957,128.17,128.12,14.47]
[1766420436880,2.34330957,128.15,128.11,0.05751824]
[1766420438990,2.34330957,128.15,128.06,14.72]
[1766420438991,17.01330957,128.13,128.06,14.72]
[1766420439190,2.34330957,128.11,128.06,14.72]
[1766420439390,2.34330957,128.11,128.06,21.7503]
[1766420440091,0.00236564,128.1,128.08,14.72]
[1766420440290,2.34330957,128.12,128.08,14.72]
[1766420441188,0.02351382,128.11,128.09,0.05616081]
[1766420441387,0.02351382,128.11,128.06,14.72]
[1766420442292,0.02351382,128.11,128.07,0.05468446]
[1766420442892,0.02351382,128.11,128.07,14.77468446]
[1766420443695,0.02351382,128.11,128.07,21.80478446]
[1766420445199,0.02351382,128.11,128.07,14.77468446]
[1766420446301,2.34330957,128.16,128.1,14.72]
[1766420446593,2.34330957,128.14,128.08,14.72]
[1766420447196,0.05398986,128.12,128.1,0.05674366]
[1766420447393,0.00398986,128.12,128.1,0.05674366]
[1766420452697,2.34330957,128.16,128.1,14.77674366]
[1766420453201,2.34330957,128.16,128.11,7.0278]
[1766420453407,2.34330957,128.16,128.11,21.7478]
[1766420453904,2.34330957,128.16,128.12,7.0274]
[1766420454096,2.34330957,128.16,128.13,0.05603131]
[1766420454394,116.75,128.18,128.13,0.05603131]
[1766420454594,12.34330957,128.18,128.14,14.72]
[1766420454813,12.34330957,128.18,128.13,0.05603131]
[1766420455605,2.34330957,128.16,128.1,14.72]
[1766420456492,2.34330957,128.16,128.12,0.05290859]
[1766420456692,0.05431626,128.14,128.12,0.05290859]
[1766420456908,0.00431626,128.14,128.12,0.05290859]
[1766420457393,0.00431626,128.14,128.12,21.80030859]
[1766420457807,2.34330957,128.16,128.12,21.80030859]
[1766420458503,12.34330957,128.18,128.13,14.72]
[1766420459008,10.0,128.18,128.13,14.72]
[1766420459607,10.0,128.18,128.14,21.7462]
[1766420459904,10.0,128.18,128.15,0.05390358]
[1766420460101,2.34330957,128.2,128.15,14.77390358]
[1766420460703,2.34330957,128.18,128.15,0.05390358]
[1766420461406,17.01330957,128.2,128.15,0.05390358]
[1766420461906,24.03640957,128.2,128.15,0.05390358]
[1766420462908,14.67,128.19,128.15,0.05390358]
[1766420463300,17.01330957,128.18,128.15,0.05390358]
[1766420463611,2.34330957,128.18,128.13,14.72]
[1766420464014,17.01330957,128.2,128.13,14.72]
[1766420464602,0.05888403,128.18,128.15,0.05972857]
[1766420465108,2.34330957,128.2,128.15,21.80552857]
[1766420465719,2.34330957,128.2,128.15,14.77972857]
[1766420465914,2.34330957,128.2,128.15,0.05972857]
[1766420467417,16.66330957,128.2,128.12,99.1069]
[1766420467620,16.66330957,128.18,128.12,92.08]
[1766420467802,16.66330957,128.18,128.12,106.96]
[1766420468008,14.32,128.18,128.12,106.96]
[1766420468521,0.06017142,128.16,128.14,0.0530954]
[1766420471118,10.67898269,128.2,128.14,0.0530954]
[1766420471303,21.3435,128.2,128.14,0.0530954]
[1766420471708,21.3435,128.2,128.14,14.9330954]
[1766420471922,21.3424,128.22,128.14,14.9330954]
[1766420472113,21.3424,128.22,128.14,14.88]
[1766420472421,7.0226,128.21,128.17,0.05533157]
[1766420473818,7.0231,128.2,128.17,0.05533157]
[1766420474515,21.3431,128.2,128.12,106.96]
[1766420475318,14.32,128.18,128.1,14.88]
[1766420475620,0.05742156,128.15,128.13,0.05892751]
[1766420476616,7.0247,128.18,128.13,14.93892751]
[1766420477704,7.0238,128.19,128.13,14.93892751]
[1766420477913,7.0238,128.19,128.15,0.05094736]
[1766420479220,106.36,128.21,128.15,0.05094736]
[1766420480721,7.0231,128.2,128.15,0.05094736]
[1766420481219,92.04,128.21,128.15,14.93094736]
[1766420482622,7.0248,128.17,128.11,14.88]
[1766420483621,0.05094736,128.15,128.13,0.05213903]
[1766420485815,0.00094736,128.15,128.13,0.05213903]
[1766420487426,0.00094736,128.15,128.13,14.93213903]
[1766420487632,0.00094736,128.15,128.14,14.88]
[1766420489224,0.00094736,128.15,128.14,16.44]
[1766420489419,14.32,128.23,128.16,7.0252]
[1766420489930,14.32,128.23,128.16,22.1552]
[1766420490431,14.4,128.22,128.18,0.05037336]
[1766420492031,106.46,128.24,128.18,0.05037336]
[1766420492222,14.4,128.24,128.18,7.07427336]
[1766420493227,21.4202,128.26,128.19,7.0235]
[1766420493534,14.4,128.26,128.21,0.05069465]
[1766420495636,21.1604,128.25,128.21,0.05069465]
[1766420495935,14.14,128.24,128.21,0.00069465]
[1766420496130,17.79548269,128.24,128.17,92.06]
[1766420496336,14.14,128.23,128.17,92.06]
[1766420496538,21.1616,128.23,128.17,92.06]
[1766420497123,0.05069465,128.21,128.19,0.0580099]
[1766420497329,0.05069465,128.21,128.15,14.74]
[1766420498240,0.05069465,128.21,128.15,21.7657]
[1766420498536,0.05069465,128.21,128.17,0.05909064]
[1766420498937,14.19069465,128.21,128.17,0.05909064]
[1766420499425,21.21329465,128.21,128.17,0.05909064]
[1766420499629,14.14,128.2,128.13,14.74]
[1766420500540,0.05394478,128.18,128.15,0.05408939]
[1766420501734,14.19394478,128.18,128.15,0.00408939]
[1766420501931,17.79548269,128.16,128.08,9.84204828]
[1766420502126,14.14,128.15,128.08,2.76130173]
[1766420502330,14.14,128.15,128.07,14.74]
[1766420502741,21.1658,128.15,128.07,14.74]
[1766420502942,0.05746389,128.12,128.1,0.05023205]
[1766420504434,0.05746389,128.12,128.1,0.00023205]
[1766420504843,0.05746389,128.12,128.05,7.0308]
[1766420505139,0.05746389,128.12,128.05,99.0908]
[1766420505339,0.05746389,128.12,128.05,113.8308]
[1766420505733,0.05746389,128.12,128.07,0.05180454]
[1766420506746,21.22516389,128.12,128.07,0.05180454]
[1766420506938,24.88064658,128.12,128.07,0.05180454]
[1766420507447,0.05746389,128.12,128.07,0.05180454]
[1766420507744,0.05746389,128.12,128.07,21.82180454]
[1766420507943,0.05746389,128.12,128.08,14.74]
[1766420509648,0.05746389,128.12,128.08,21.7695]
[1766420511548,0.05746389,128.12,128.09,7.0289]
[1766420512651,17.79548269,128.18,128.1,14.74]
[1766420513547,0.05365456,128.15,128.13,0.05695985]
[1766420514149,14.19365456,128.15,128.09,99.1086]
[1766420515154,14.19365456,128.15,128.11,0.0534379]
[1766420515944,14.14,128.14,128.11,0.0034379]
[1766420516144,17.79548269,128.14,128.07,113.8497]
[1766420517044,0.05577764,128.12,128.09,0.05528337]
[1766420518247,0.05577764,128.12,128.04,124.1205]
[1766420518248,14.19577764,128.12,128.05,92.08]
[1766420518451,14.14,128.12,128.05,92.08]
[1766420518653,14.14,128.11,128.05,92.08]
[1766420519254,0.0580375,128.09,128.07,0.05443217]
[1766420519853,0.0580375,128.09,128.0,14.74]
[1766420519854,17.79548269,128.08,128.0,14.74]
[1766420520053,14.14,128.07,127.98,27.47733492]
[1766420520361,37.61,128.07,127.98,27.47733492]
[1766420520755,17.79548269,128.06,127.98,27.47733492]
[1766420520951,0.05942146,128.03,128.01,0.05843933]
[1766420521357,129.69,128.09,128.01,14.79843933]
[1766420521552,14.14,128.09,128.02,14.74]
[1766420521758,116.90298269,128.12,128.04,7.0315]
[1766420522062,14.14,128.11,128.04,7.0315]
[1766420522467,0.05983307,128.09,128.06,8.095e-05]
[1766420523275,21.22903307,128.09,128.01,92.1]
[1766420523471,21.1692,128.09,128.01,106.84]
[1766420523671,14.14,128.09,128.02,14.74]
[1766420523974,24.82388269,128.11,128.03,21.7723]
[1766420524468,0.05025645,128.08,128.06,0.05322551]
[1766420525980,0.05025645,128.08,128.06,0.00322551]
[1766420530874,16.48280539,128.11,128.06,0.00322551]
[1766420531288,21.7567,128.14,128.06,14.75322551]
[1766420531482,2.34280539,128.15,128.06,14.75]
[1766420531675,2.34280539,128.15,128.07,14.75]
[1766420531875,2.34280539,128.15,128.1,0.05260897]
[1766420532376,9.36870539,128.15,128.1,0.05260897]
[1766420532877,17.07280539,128.13,128.1,0.00260897]
[1766420533079,2.34280539,128.11,128.05,14.75]
[1766420533375,9.37030539,128.12,128.05,21.7812]
[1766420533969,0.05199384,128.1,128.07,0.05624731]
[1766420535077,0.05199384,128.1,128.02,216.2676]
[1766420535392,2.34280539,128.08,128.02,99.1526]
[1766420535685,17.07280539,128.08,128.02,92.12]
[1766420535870,2.34280539,128.06,127.99,14.75]
[1766420536185,0.05267355,128.04,128.01,0.05990847]
[1766420537786,0.05267355,128.04,128.01,7.09330847]
[1766420539582,0.05267355,128.04,128.01,0.05990847]
[1766420541089,0.05267355,128.04,128.01,7.09330847]
[1766420541289,0.00267355,128.04,128.01,0.05990847]
[1766420544591,17.07547894,128.04,127.98,104.85733492]
[1766420545193,0.00267355,128.04,127.98,116.87]
[1766420545686,0.00267355,128.04,128.0,0.05071941]
[1766420545879,0.00267355,128.04,128.0,14.80071941]
[1766420546284,2.34547894,128.04,128.0,0.05071941]
[1766420546787,24.10737894,128.04,128.0,0.05071941]
[1766420547583,7.0326,128.03,128.0,0.05071941]
[1766420547782,14.73,128.03,128.0,0.00071941]
[1766420550583,17.07280539,128.03,128.0,0.00071941]
[1766420552099,24.10520539,128.03,128.0,0.00071941]
[1766420558596,0.00267355,128.04,128.0,0.00071941]
[1766420559208,16.66280539,128.03,127.98,10.0]
[1766420559908,21.3531,128.02,127.98,10.0]
[1766420560203,0.05457977,128.01,127.98,10.0]
[1766420560595,23.75098516,128.01,127.98,0.0001]
[1766420561302,23.75098516,128.01,127.98,0.05600589]
[1766420562003,21.3541,128.0,127.94,14.59]
[1766420562997,0.05911549,127.98,127.96,0.05154813]
[1766420569012,16.66280539,128.02,127.96,7.08764813]
[1766420569902,0.05729582,128.0,127.96,7.08764813]
[1766420571011,0.05729582,128.0,127.96,21.67764813]
[1766420572501,0.05729582,128.0,127.96,0.05154813]
[1766420577011,0.05729582,128.0,127.91,204.01580539]
[1766420577012,2.34280539,127.98,127.91,14.59]
[1766420577220,16.66280539,127.98,127.91,14.59]
[1766420577817,7.0357,127.97,127.91,21.6284]
[1766420578122,0.05001491,127.95,127.93,0.05060985]
[1766420581417,14.37001491,127.95,127.93,0.00060985]
[1766420582511,0.05001491,127.95,127.93,0.00060985]
[1766420587326,17.0728203,127.95,127.9,92.18]
[1766420587520,17.0728203,127.95,127.9,99.2195]
[1766420588218,14.73001491,127.95,127.91,0.05070876]
[1766420588822,23.47,128.03,127.92,13.94]
[1766420589028,25.81280539,128.03,127.93,13.94]
[1766420589217,2.34280539,128.01,127.93,13.94]
[1766420589915,0.05849247,127.98,127.96,0.05547706]
[1766420590519,0.05849247,127.98,127.93,13.94]
[1766420591520,0.05849247,127.98,127.95,7.0366]
[1766420594927,0.05849247,127.98,127.96,7.0361]
[1766420595223,14.68,128.03,127.95,13.94]
[1766420595623,21.7125,128.03,127.95,13.94]
[1766420596323,0.05411893,128.0,127.98,0.05845773]
[1766420596630,0.05411893,128.0,127.96,7.0361]
[1766420597528,0.05411893,128.0,127.97,0.05615363]
[1766420600424,0.05411893,128.0,127.98,7.035]
[1766420602730,18.34498177,128.05,127.99,20.9745]
[1766420602944,14.68,128.05,127.99,13.94]
[1766420603528,106.88,128.06,127.99,13.94]
[1766420603738,0.05595016,128.04,128.01,0.05488315]
[1766420605844,14.73595016,128.04,128.01,0.00488315]
[1766420606238,14.73595016,128.04,127.98,99.2346]
[1766420607135,14.73595016,128.04,128.0,0.05979506]
[1766420609848,21.76775016,128.04,128.0,0.05979506]
[1766420610353,13.93,128.03,127.97,7.0357]
[1766420611252,0.0556616,128.01,127.97,7.0357]
[1766420614256,0.0556616,128.01,127.96,20.9762]
[1766420614559,13.9856616,128.01,127.94,106.59]
[1766420614744,0.00470463,127.99,127.95,14.41]
[1766420614948,13.93,128.04,127.95,14.41]
[1766420615257,13.93,128.04,127.95,21.4462]
[1766420615457,13.93,128.02,127.95,21.4462]
[1766420615956,132.8573,128.04,127.97,0.05308792]
[1766420615957,0.0569044,128.0,127.97,0.05308792]
[1766420620764,0.0569044,128.0,127.97,14.31308792]
[1766420620960,20.8424,128.03,127.97,14.31308792]
[1766420621465,7.0324,128.03,127.98,14.26]
[1766420621860,0.05063623,128.02,127.98,14.26]
[1766420623463,0.00063623,128.02,127.99,14.26]
[1766420624974,0.00063623,128.02,127.97,21.34868792]
[1766420625974,13.81063623,128.02,127.97,0.05308792]
[1766420626168,17.475618,128.02,127.97,0.05308792]
[1766420626367,7.0346,127.99,127.97,0.05308792]
[1766420626565,7.09003616,127.99,127.97,0.05308792]
[1766420626768,7.09003616,127.99,127.94,92.18]
[1766420627280,0.05543616,127.99,127.94,92.18]
[1766420627780,0.05543616,127.99,127.95,0.05969784]
[1766420633082,0.05543616,127.99,127.95,7.09639784]
[1766420633469,0.05543616,127.99,127.95,0.05969784]
[1766420633882,13.86543616,127.99,127.95,0.05969784]
[1766420634782,20.90003616,127.99,127.95,0.05969784]
[1766420634981,13.81,127.98,127.94,92.18]
[1766420635184,13.81,127.98,127.92,14.26]
[1766420635983,13.81,127.98,127.94,0.0583143]
[1766420636185,0.05177875,127.96,127.94,0.0583143]
[1766420638885,0.00177875,127.96,127.94,0.0583143]
[1766420640482,13.81,128.0,127.94,7.0956143]
[1766420641185,10.69838177,128.02,127.96,14.26]
[1766420641379,7.0334,128.02,127.96,14.26]
[1766420641688,0.05206802,128.0,127.98,0.05977459]
[1766420643587,13.81,128.05,127.98,14.31977459]
[1766420643889,13.81,128.05,127.98,14.26]
[1766420644585,0.0502525,128.03,128.0,0.04944695]
[1766420649883,13.8002525,128.03,128.0,0.04944695]
[1766420650089,2.34510283,128.02,127.96,105.52]
[1766420650592,13.75,128.02,127.96,105.52]
[1766420650796,16.09510283,128.01,127.96,92.2]
[1766420651095,0.05058297,128.0,127.97,0.05545005]
[1766420653404,0.00058297,128.0,127.97,0.05545005]
[1766420655900,0.00058297,128.0,127.97,13.37545005]
[1766420659390,0.00058297,128.0,127.98,13.32]
[1766420659597,0.00058297,128.0,127.97,0.05545005]
[1766420660496,2.3456858,128.0,127.97,0.05545005]
[1766420662609,0.00058297,128.0,127.97,0.05545005]
[1766420664812,0.00058297,128.0,127.97,13.37545005]
[1766420665611,0.00058297,128.0,127.99,7.0346]
[1766420668506,0.00058297,128.0,127.99,20.3546]
[1766420669316,0.00058297,128.0,127.99,7.0346]
[1766420670910,0.00058297,128.0,127.98,13.14]
[1766420671823,0.00058297,128.0,127.98,20.1751]
[1766420673619,0.00058297,128.0,127.99,20.1746]
[1766420676117,0.00058297,128.0,127.99,13.14]
[1766420676411,0.00058297,128.0,127.97,105.66545005]
[1766420676715,0.00058297,128.0,127.98,7.0351]
[1766420676915,0.00058297,128.0,127.97,105.66545005]
[1766420678321,0.00058297,128.0,127.97,20.50115005]
[1766420682437,0.00058297,128.0,127.97,13.46545005]
[1766420682934,0.00058297,128.0,127.97,0.05545005]
[1766420683244,2.3456858,128.0,127.97,0.05545005]
[1766420687739,0.00058297,128.0,127.97,13.46545005]
[1766420688338,0.00058297,128.0,127.98,20.445]
[1766420690443,0.00058297,128.0,127.98,13.41]
[1766420691646,0.00058297,128.0,127.98,20.4451]
[1766420694752,0.00058297,128.0,127.98,13.41]
[1766420697354,0.00058297,128.0,127.99,7.0346]
[1766420697554,92.18,128.08,127.99,7.0346]
[1766420697555,15.61510283,128.11,128.0,109.417]
[1766420697751,15.61510283,128.11,128.01,9.49967668]
[1766420698053,9.37250283,128.13,128.05,13.41]
[1766420698452,0.05461001,128.1,128.08,0.05670068]
[1766420699151,0.05461001,128.1,128.05,13.41]
[1766420699853,0.05461001,128.1,128.05,20.4412]
[1766420700249,0.05461001,128.1,128.06,0.05174444]
[1766420701553,13.32461001,128.1,128.06,0.05174444]
[1766420701750,15.61510283,128.07,127.99,13.41]
[1766420701946,15.61510283,128.09,128.0,13.41]
[1766420702754,0.06006285,128.06,128.03,0.05106923]
[1766420703961,0.06006285,128.06,128.03,7.08336923]
[1766420704358,2.34510283,128.1,128.03,20.49336923]
[1766420704857,20.2984,128.11,128.03,20.49336923]
[1766420705064,22.64350283,128.11,128.03,20.4423]
[1766420705249,0.05207946,128.08,128.06,0.05998392]
[1766420706260,0.00207946,128.08,128.06,0.05998392]
[1766420708463,0.00207946,128.08,128.02,14.19]
[1766420709067,2.34510283,128.07,128.02,14.19]
[1766420709467,2.34510283,128.07,128.03,0.05804761]
[1766420709670,0.00207946,128.08,128.03,14.24804761]
[1766420713968,13.22207946,128.08,128.03,0.05804761]
[1766420714157,7.0305,128.07,128.03,0.05804761]
[1766420714759,13.22207946,128.08,128.03,0.05804761]
[1766420714957,7.0308,128.06,128.03,0.05804761]
[1766420716054,13.22,128.06,128.0,14.19]
[1766420716369,13.22,128.06,127.95,14.19]
[1766420716370,13.22,128.02,127.95,14.19]
[1766420717072,0.04951846,128.0,127.97,0.05016033]
[1766420721177,0.04951846,128.0,127.97,7.08576033]
[1766420721673,13.66,128.04,127.97,13.26016033]
[1766420721864,13.66,128.04,127.97,13.21]
[1766420722270,13.66,128.04,127.95,122.6676]
[1766420722772,0.05884718,128.01,127.98,0.05316827]
[1766420723267,0.05884718,128.01,127.98,7.08806827]
[1766420724472,0.05884718,128.01,127.99,7.0345]
[1766420728380,105.82,128.06,127.99,122.6337]
[1766420728773,105.82,128.06,128.0,122.6255]
[1766420729378,0.05526102,128.04,128.02,0.05140636]
[1766420729575,13.66,128.08,128.02,0.05140636]
[1766420729770,13.66,128.08,128.02,13.26140636]
[1766420730280,13.66,128.08,128.04,7.0317]
[1766420730479,13.66,128.08,128.0,122.6255]
[1766420730681,0.05113783,128.05,128.03,0.05706944]
[1766420730880,0.05113783,128.05,128.03,7.08936944]
[1766420735495,0.05113783,128.05,128.03,0.05706944]
[1766420737078,13.24113783,128.05,128.0,7.0339]
[1766420737781,13.24113783,128.05,128.01,7.0334]
[1766420737984,13.24113783,128.05,128.02,0.05671105]
[1766420740984,0.05113783,128.05,128.02,0.05671105]
[1766420741483,0.00113783,128.05,128.02,13.42671105]